Cogmind - Beta 14 @@@ ROGUE MODE // 2024.08.18 @ 23:06:20 Player: HourglassLad Result: Destroyed by P-80 Master with Gamma Rifle Performance ------------- Evolutions (7) 3500 Regions Visited (14) 2800 Robots Destroyed (69) 345 Value Destroyed (2662) 2662 Prototype IDs (2) 40 Alien Tech Used (0) 0 Bonus (219) 219 TOTAL SCORE: 9566 Bonus ------- High Alert Combat Kills 19 Entered Garrisons 200 Cogmind --------- Core Integrity 0/1300 Matter 6/300 Energy 99/100 System Corruption 11% Temperature Cool (0) Movement Core (50) Location -3/Research Parts ------- > --- POWER (2) -------- (None) > --- PROPULSION (8) --- (None) > --- UTILITY (7) ------ High-powered Tractor Beam High-powered Tractor Beam > --- WEAPON (4) ------- (None) > --- INVENTORY (5) ---- Improved Linear Gravjet Advanced Thermal Shield Long-range Tractor Beam Phase Gun Hypervelocity Railgun Peak State ------------ > --- POWER ------------ Light Nuclear Core Light Antimatter Reactor > --- PROPULSION ------- Flexi-carbon Leg Gravmag Array Gravmag Array Gravmag Array Improved Antigrav System > --- UTILITY ---------- Power Amplifier Improved Heat Sink Medium Storage Unit Improved Target Analyzer Improved Medium Armor Plating Makeshift Light Armor Plating Drone Bay > --- WEAPON ----------- Wave Gun Quantum Rifle Hypervelocity Railgun Enhanced Gauss Cannon > --- INVENTORY -------- Gravmag Array Q-thruster Experimental Coolant Injector Advanced Melee Analysis Suite Improved Kinecellerator High-powered Tractor Beam Railgun Hypervelocity Railgun Hypervelocity Railgun [Rating: 113] Favorites ----------- Power Light Nuclear Core Engine Angular Momentum Engine Power Core Light Nuclear Core Reactor Light Antimatter Reactor Propulsion Wheel Treads Advanced Treads Leg Aluminum Leg Wheel Wheel Hover Unit Gravmag Array Flight Unit Xenon Bombardment Thruster Utility Medium Storage Unit Device Seismic Detector Storage Medium Storage Unit Processor Signal Interpreter Protection Improved Medium Armor Plating Weapon Improved EM Pulse Cannon Energy Gun Pulse Rifle Energy Cannon Improved EM Pulse Cannon Ballistic Gun Gauss Rifle Ballistic Cannon Flak Cannon Launcher Rocket Launcher Slashing Weapon Katana Build | -11 -10 -9 -8 -7 -7 -7 -6 -5 -4 -4 -4 -3 -3 -3 ------- Run | Yrd Mat Mat Mat Fac Low Low Fac Fac Fac Upp Upp Res Gar Res Slots Evolved 14 | . . 2 2 2 . . 2 2 2 . . 2 . . Power 1 | . . . . . . . . 1 . . . . . . Propulsion 6 | . . 1 1 . . . 1 1 1 . . 1 . . Utility 5 | . . 1 1 2 . . . . . . . 1 . . Weapon 2 | . . . . . . . 1 . 1 . . . . . Parts Attached 126 | 8 1 15 32 9 5 . 1 14 4 10 7 12 . 8 Power 13 | 1 . 2 3 1 . . 1 2 . 2 . 1 . . Engine 6 | 1 . 2 1 . . . 1 1 . . . . . . Core 6 | . . . 2 1 . . . 1 . 2 . . . . Reactor 1 | . . . . . . . . . . . . 1 . . Propulsion 31 | 3 . 1 9 3 . . . 3 1 5 2 4 . . Treads 1 | . . . 1 . . . . . . . . . . . Leg 8 | 1 . . 5 . . . . . . . 1 1 . . Wheel 8 | 2 . 1 3 2 . . . . . . . . . . Hover 12 | . . . . 1 . . . 3 1 4 1 2 . . Flight 2 | . . . . . . . . . . 1 . 1 . . Utility 43 | 2 1 2 9 3 4 . . 6 1 2 2 4 . 7 Device 23 | 1 . 1 4 3 1 . . 2 1 . 1 2 . 7 Storage 5 | 1 1 . 1 . . . . 1 . . . 1 . . Processor 4 | . . . 1 . 1 . . 1 . 1 . . . . Hackware . | . . . . . . . . . . . . . . . Protection 11 | . . 1 3 . 2 . . 2 . 1 1 1 . . Artifact . | . . . . . . . . . . . . . . . Weapon 39 | 2 . 10 11 2 1 . . 3 2 1 3 3 . 1 Energy Gun 8 | 2 . . . 2 . . . 1 . . 1 1 . 1 Energy Cannon 3 | . . . 2 . . . . 1 . . . . . . Ballistic Gun 14 | . . 5 3 . . . . . 2 1 2 1 . . Ballistic Cannon 7 | . . 2 3 . . . . 1 . . . 1 . . Launcher 6 | . . 3 2 . 1 . . . . . . . . . Special Weapon . | . . . . . . . . . . . . . . . Impact Weapon . | . . . . . . . . . . . . . . . Slashing Weapon 1 | . . . 1 . . . . . . . . . . . Piercing Weapon . | . . . . . . . . . . . . . . . Special Melee Weapon . | . . . . . . . . . . . . . . . Unidentified Prototypes 2 | . . . . . . . . . . . 1 1 . . Parts Lost 43 | . . . 12 3 9 . . 1 . 1 6 9 1 1 Power 6 | . . . 2 . . . . 1 . . 1 2 . . Propulsion 16 | . . . 5 2 3 . . . . . 2 3 1 . Utility 11 | . . . 1 1 4 . . . . . . 4 . 1 Weapon 10 | . . . 4 . 2 . . . . 1 3 . . . Highest Loss Streak 9 | . . . 6 1 4 . . 1 . 1 4 9 1 1 To Critical Strikes . | . . . . . . . . . . . . . . . Average Slot Usage (%) 79 | . 100 93 96 98 63 . . 55 72 84 77 73 2 22 Engine 3 | . 14 11 3 . . . . 4 5 5 4 . . . Core 3 | . . . 5 7 5 . . 2 . 4 5 3 . . Treads 2 | . . . 3 7 5 . . . . . . . . . Leg 5 | . . . 8 17 6 . . . . . . 3 . . Wheel 10 | . 28 29 22 3 . . . . . . . . . . Hover 4 | . . . . . . . . 14 21 24 18 17 2 . Device 13 | . 14 18 12 22 9 . . 4 9 10 10 10 . 21 Storage 6 | . 14 11 9 7 5 . . 4 5 5 5 3 . . Processor 5 | . . . 9 7 1 . . 3 5 9 10 5 . . Protection 5 | . . . 4 7 11 . . 5 5 5 5 7 . . Energy Gun 4 | . 28 6 . 3 12 . . 3 5 . 3 7 . . Energy Cannon 3 | . . . 6 4 . . . 4 5 5 . . . . Ballistic Gun 4 | . . 4 6 6 . . . . 7 12 12 6 . . Ballistic Cannon 1 | . . 5 3 . . . . 3 2 . . 1 . . Peak Build Rating 113 | 7 8 15 24 32 36 1 6 74 88 99 98 113 11 27 Average Rating 35 | 5 7 12 21 28 25 1 1 58 85 93 88 95 6 16 On Entrance 29 | . 7 8 13 24 32 1 1 1 69 88 98 82 11 1 Naked Turns 451 | . . . . . 143 94 85 73 . . . 23 26 7 Heaviest Build 73 | 13 18 28 37 32 36 . . 62 63 66 64 73 . 12 Greatest Support 74 | 26 26 36 46 35 25 3 3 60 71 74 72 72 20 3 Greatest Overweight (x) 3 | 1 . . 3 2 2 . . 1 1 2 3 1 . 3 Average Overweight (x) . | . . . . . . . . . . . . . . . Largest Inventory Capacity 10 | 8 10 10 10 10 10 5 5 10 10 10 10 10 5 5 Average Capacity 9 | 7 8 10 10 10 9 5 5 9 10 10 10 9 5 5 Most Carried 10 | 4 9 10 10 10 10 5 5 9 10 10 10 10 3 5 Average Carried 8 | 2 6 9 8 8 8 5 4 5 8 9 7 8 3 4 Final Capacity 10 | 8 10 10 10 10 5 5 5 10 10 10 10 5 5 5 Final Carried 10 | 4 9 10 9 10 5 5 5 9 10 10 8 3 3 5 Class Distribution -------------------- 38% | Mutant 26% | Scavenger-Mutant 12% | Scavenger-Skirmisher 10% | Scavenger-Gunner 5% | Scavenger-Tank 4% | Gunner Dominant Class ---------------- Mutant | -10/Materials Mutant | -9/Materials Scavenger-Mutant | -8/Materials Scavenger-Skirmisher | -7/Factory Scavenger-Mutant | -7/Lower Caves Mutant | -7/Lower Caves Mutant | -6/Factory Gunner | -5/Factory Scavenger-Gunner | -4/Factory Scavenger-Gunner | -4/Upper Caves Scavenger-Gunner | -4/Upper Caves Scavenger-Tank | -3/Research Mutant | -3/Garrison Mutant | -3/Research Resources | -11 -10 -9 -8 -7 -7 -7 -6 -5 -4 -4 -4 -3 -3 -3 ----------- Run | Yrd Mat Mat Mat Fac Low Low Fac Fac Fac Upp Upp Res Gar Res Matter Collected 2323 | 219 19 170 637 156 210 . . 219 . 327 269 97 . . Remotely . | . . . . . . . . . . . . . . . Salvage Created 2573 | 28 19 438 637 156 187 . . 226 . 181 349 352 . . Parts 147 | 4 4 32 25 12 6 . . 14 . 18 16 16 . . Haulers Intercepted 2 | . . 1 1 . . . . . . . . . . . Recyclers Shooed 1 | . . 1 . . . . . . . . . . . . Parts Field Recycled . | . . . . . . . . . . . . . . . Retrieved Matter . | . . . . . . . . . . . . . . . Parts Self-Destructed 39 | . . . . . 5 . . . . 19 15 . . . Prevented 1 | . . . . . . . . . . 1 . . . . Kills | -11 -10 -9 -8 -7 -7 -7 -6 -5 -4 -4 -4 -3 -3 -3 ------- Run | Yrd Mat Mat Mat Fac Low Low Fac Fac Fac Upp Upp Res Gar Res Combat Hostiles Destroyed 60 | . . 14 15 3 4 . . 4 . 8 8 4 . . Melee 2 | . . . 2 . . . . . . . . . . . Guns 30 | . . 3 4 2 4 . . . . 7 7 3 . . Cannons 17 | . . . 9 1 . . . 4 . 1 1 1 . . AOE 11 | . . 11 . . . . . . . . . . . . Classes Destroyed 13 | 1 1 7 2 1 . . . . . . . 1 . . Worker 2 | . . . 1 1 . . . . . . . . . . Builder 1 | . . 1 . . . . . . . . . . . . Tunneler 1 | 1 . . . . . . . . . . . . . . Hauler 2 | . . 1 1 . . . . . . . . . . . Recycler 1 | . . . . . . . . . . . . 1 . . Watcher 2 | . 1 . . . . . . . . . . 1 . . Swarmer 20 | . . 3 1 . . . . . . 8 5 3 . . Grunt 24 | . . 7 11 . 3 . . . . . 3 . . . Brawler 2 | . . 1 . . 1 . . . . . . . . . Duelist 2 | . . 2 . . . . . . . . . . . . Sentry 2 | . . 1 1 . . . . . . . . . . . Hunter 5 | . . . 2 1 . . . 2 . . . . . . Programmer 5 | . . . . 2 . . . 2 . . . 1 . . Best Kill Streak 8 | 1 1 8 3 2 3 . . 2 . 4 4 6 . . Combat Bots Only 8 | . . 8 3 1 3 . . 2 . 4 4 4 . . Max Kills in Single Turn 5 | 1 1 5 1 1 1 . . 1 . 2 2 2 . . Gunslinging 1 | . . . . . . . . . . . 1 . . . Exploded 5 | . . 5 . . . . . . . . . . . . Melee 1 | . . . 1 . . . . . . . . . . . Uniques/NPCs Destroyed . | . . . . . . . . . . . . . . . Combat | -11 -10 -9 -8 -7 -7 -7 -6 -5 -4 -4 -4 -3 -3 -3 -------- Run | Yrd Mat Mat Mat Fac Low Low Fac Fac Fac Upp Upp Res Gar Res Hostile Shots Fired 634 | . 1 41 110 49 79 . . 45 15 34 92 101 54 13 Missed 204 | . . 11 32 12 29 . . 15 4 8 33 30 26 4 Damage Taken 8648 | . 16 423 1387 580 990 . . 667 265 590 986 1970 555 219 Core 2493 | . . 111 191 63 330 . . 79 28 266 110 813 379 123 Absorbed by Shields 30 | . . . . . . . . . . . . . 30 . Core Remaining (%) 79 | 100 100 72 65 . . 43 100 92 . . 64 . . . Volleys Fired 171 | 1 2 18 58 13 17 . . 10 5 10 22 15 . . Largest 4 | 2 2 2 2 2 2 . . 3 4 3 3 4 . . Hottest 272 | 80 80 72 113 132 132 . . 208 218 153 153 272 . . Shots Fired 337 | 2 4 36 72 27 29 . . 25 18 29 49 46 . . Gun 216 | 2 4 17 25 20 27 . . 5 15 20 46 35 . . Cannon 111 | . . 11 47 7 . . . 20 3 9 3 11 . . Launcher 10 | . . 8 . . 2 . . . . . . . . . Special . | . . . . . . . . . . . . . . . Kinetic 200 | . . 28 58 11 . . . 10 10 20 37 26 . . Thermal 96 | 2 4 . . 9 27 . . 10 3 9 12 20 . . Explosive 10 | . . 8 . . 2 . . . . . . . . . Electromagnetic 31 | . . . 14 7 . . . 5 5 . . . . . Robot Hit Streak 7 | 1 3 4 7 7 7 . . 3 6 5 4 4 . . Robot Miss Streak 5 | . 1 4 4 1 2 . . 3 1 2 5 5 . . Penetration Max 1 | . . . . . . . . . . 1 . 1 . . Secondary Targets 4 | . . . . . 2 . . . . . 2 . . . Max Gunslinging Chain 1 | . . . . . 1 . . . . . 1 . . . Shots Hit Robots 210 | 1 3 17 69 18 22 . . 11 14 12 19 24 . . Core Hits 141 | 1 1 22 58 7 11 . . 7 1 8 13 12 . . Critical Kills 2 | . . . . . . . . . . . 1 1 . . Critical Parts Destroyed 4 | . . . . . . . . . 1 . 1 2 . . Critical Strikes 14 | . . . 2 . . . . 1 2 . 2 7 . . Destroy 6 | . . . . . . . . . 1 . 2 3 . . Blast 5 | . . . . . . . . 1 . . . 4 . . Corrupt 2 | . . . 1 . . . . . 1 . . . . . Sever 1 | . . . 1 . . . . . . . . . . . Melee Attacks 11 | . . . 11 . . . . . . . . . . . Impact . | . . . . . . . . . . . . . . . Slashing 11 | . . . 11 . . . . . . . . . . . Piercing . | . . . . . . . . . . . . . . . Sneak Attacks . | . . . . . . . . . . . . . . . Combat Hostiles . | . . . . . . . . . . . . . . . Follow-up Attacks . | . . . . . . . . . . . . . . . Damage Inflicted 5953 | 11 33 887 1768 316 470 . . 419 363 377 638 671 . . Guns 2957 | 11 33 159 398 248 427 . . 106 294 273 604 404 . . Cannons 1750 | . . 41 933 60 . . . 242 69 104 34 267 . . Explosions 890 | . . 687 108 . 43 . . 52 . . . . . . Melee 297 | . . . 297 . . . . . . . . . . . Ramming 59 | . . . 32 8 . . . 19 . . . . . . Kinetic 2863 | . . 200 972 122 . . . 125 233 273 531 407 . . Thermal 1366 | 11 33 . 108 126 427 . . 117 69 104 107 264 . . Explosive 730 | . . 687 . . 43 . . . . . . . . . Electromagnetic 638 | . . . 359 60 . . . 158 61 . . . . . Impact . | . . . . . . . . . . . . . . . Slashing 297 | . . . 297 . . . . . . . . . . . Piercing . | . . . . . . . . . . . . . . . Highest Corruption 10 | . . . 3 4 8 8 . 4 2 2 2 7 9 10 Average Corruption 3 | . . . 1 2 7 8 . 3 2 2 2 4 7 9 Corruption Purged . | . . . . . . . . . . . . . . . Corruption Blocked . | . . . . . . . . . . . . . . . Effects 74 | . . . 11 5 31 1 . 9 1 5 1 2 1 7 Message Errors 21 | . . . 6 . 10 . . 3 . 1 . . . 1 Matter Fused 22 | . . . 3 1 8 1 . 3 . . 1 . 1 4 Heat Flow Errors 7 | . . . 1 1 2 . . 1 . . . . . 2 Energy Discharges 9 | . . . . . 5 . . 1 . 2 . 1 . . Parts Rejected 1 | . . . . . . . . . . . . 1 . . Data Loss (minor) 6 | . . . . 1 2 . . . 1 2 . . . . Data Loss (major) 3 | . . . 1 . 2 . . . . . . . . . Misfires 1 | . . . . 1 . . . . . . . . . . Alerts 3 | . . . . 1 1 . . 1 . . . . . . Weapon Failures 1 | . . . . . 1 . . . . . . . . . Overload Shots . | . . . . . . . . . . . . . . . Overflow Damage 104 | . . 13 45 . 3 . . 20 . 8 . 15 . . Projectiles 40 | . . . 17 . . . . . . 8 . 15 . . Explosions 64 | . . 13 28 . 3 . . 20 . . . . . . Melee . | . . . . . . . . . . . . . . . Knockbacks 42 | . . . 35 . . . . 3 . . . 4 . . Impact . | . . . . . . . . . . . . . . . Kinetic 34 | . . . 28 . . . . 3 . . . 3 . . Secondary 8 | . . . 7 . . . . . . . . 1 . . Self-Inflicted Damage 260 | . . 33 63 . 42 . . 122 . . . . . . Shots 5 | . . 1 1 . 1 . . 2 . . . . . . Rammed 8 | . . . 7 . . . . 1 . . . . . . Targets Rammed 12 | . . . 10 1 . . . 1 . . . . . . Kicked 4 | . . . 3 1 . . . . . . . . . . Crushed . | . . . . . . . . . . . . . . . Highest Temperature 644 | 18 18 45 242 269 198 . . 479 421 625 339 644 14 218 Average Temperature 146 | 12 12 17 81 55 79 . . 175 235 176 185 305 12 106 Received Heat Transfer 1597 | . 9 156 603 45 303 . . . 72 . 193 69 138 9 Effects 37 | . . . . . . . . 1 3 14 3 16 . . Shutdowns 9 | . . . . . . . . 1 1 4 . 3 . . Energy Bleed 4 | . . . . . . . . . . 1 1 2 . . Interference 11 | . . . . . . . . . 2 4 2 3 . . Matter Decay 3 | . . . . . . . . . . 2 . 1 . . Short Circuit 2 | . . . . . . . . . . 1 . 1 . . Damage (major) 5 | . . . . . . . . . . 1 . 4 . . Damage (core) 3 | . . . . . . . . . . 1 . 2 . . Siege Activations . | . . . . . . . . . . . . . . . Robots Corrupted 1 | . . . . . . . . . . . . 1 . . Combat Hostiles . | . . . . . . . . . . . . . . . Parts Fried 3 | . . . . . . . . 1 . . . 2 . . Impact Corruptions 1 | . . . . . . . . . . . . 1 . . Robots Melted . | . . . . . . . . . . . . . . . Combat Hostiles . | . . . . . . . . . . . . . . . Parts Melted 2 | . . . . . 2 . . . . . . . . . Heat Transferred 2050 | 25 75 . 100 222 851 . . 111 74 111 148 333 . . Parts Sabotaged . | . . . . . . . . . . . . . . . Parts Stolen . | . . . . . . . . . . . . . . . Parts Stripped . | . . . . . . . . . . . . . . . Power Chain Reactions 2 | . . . 1 . . . . 1 . . . . . . Alert | -11 -10 -9 -8 -7 -7 -7 -6 -5 -4 -4 -4 -3 -3 -3 ------- Run | Yrd Mat Mat Mat Fac Low Low Fac Fac Fac Upp Upp Res Gar Res Peak Influence 464 | 5 10 464 230 62 . . 44 160 92 . . 277 44 48 Initial 195 | . 3 3 195 41 . . 30 21 7 . . 111 24 24 Average 79 | 1 7 77 112 40 . . 42 60 37 . . 151 23 28 Maximum Alert Level 2 | . . 2 1 . . . . . . . . 1 . . Low Security (%) 92 | 100 100 94 84 100 . . 100 100 100 . . 80 100 100 Level 1 7 | . . 1 15 . . . . . . . . 19 . . Level 2 . | . . 4 . . . . . . . . . . . . Level 3 . | . . . . . . . . . . . . . . . Level 4 . | . . . . . . . . . . . . . . . Level 5 . | . . . . . . . . . . . . . . . High Security . | . . . . . . . . . . . . . . . Max Security . | . . . . . . . . . . . . . . . Squads Dispatched 13 | . . 1 3 3 . . . 1 1 . . 3 . 1 Investigation 6 | . . 1 2 . . . . 1 . . . 1 . 1 Extermination 3 | . . . . 2 . . . . . . . 1 . . Reinforcement 3 | . . . 1 1 . . . . . . . 1 . . Assault . | . . . . . . . . . . . . . . . Garrison 1 | . . . . . . . . . 1 . . . . . Intercept . | . . . . . . . . . . . . . . . Searches Triggered . | . . . . . . . . . . . . . . . Construction Impeded 2 | . . . 1 . . . . . . . . 1 . . Haulers Reinforced . | . . . . . . . . . . . . . . . Active Scanning Responses . | . . . . . . . . . . . . . . . Cargo Convoy Interrupts . | . . . . . . . . . . . . . . . Stealth | -11 -10 -9 -8 -7 -7 -7 -6 -5 -4 -4 -4 -3 -3 -3 --------- Run | Yrd Mat Mat Mat Fac Low Low Fac Fac Fac Upp Upp Res Gar Res Distress Signals 2 | . . . 1 . . . . . . . . 1 . . Communications Jammed . | . . . . . . . . . . . . . . . Distress Signals . | . . . . . . . . . . . . . . . Times Spotted 133 | . 4 17 28 6 12 . . 5 2 13 13 19 11 3 Peak Tracking Total 11 | . 2 9 4 2 4 . . 2 2 4 6 9 11 3 Tactical Retreats 14 | . . . 4 . 3 . . 1 1 2 . 2 1 . Traps | -11 -10 -9 -8 -7 -7 -7 -6 -5 -4 -4 -4 -3 -3 -3 ------- Run | Yrd Mat Mat Mat Fac Low Low Fac Fac Fac Upp Upp Res Gar Res Traps Triggered 6 | . . . 2 . . . . 1 1 . . . 1 1 Indirectly . | . . . . . . . . . . . . . . . Trap Hack Attempts . | . . . . . . . . . . . . . . . Triggered . | . . . . . . . . . . . . . . . Disarmed . | . . . . . . . . . . . . . . . Reprogrammed . | . . . . . . . . . . . . . . . Reused . | . . . . . . . . . . . . . . . Traps Extracted . | . . . . . . . . . . . . . . . Installed . | . . . . . . . . . . . . . . . Triggered 3 | . . . . . . . . . . 2 1 . . . Machines | -11 -10 -9 -8 -7 -7 -7 -6 -5 -4 -4 -4 -3 -3 -3 ---------- Run | Yrd Mat Mat Mat Fac Low Low Fac Fac Fac Upp Upp Res Gar Res Machines Disabled 3 | . . 1 . 1 . . . 1 . . . . . . Max in Single Turn 1 | . . 1 . 1 . . . 1 . . . . . . Machines Repaired . | . . . . . . . . . . . . . . . Machines Dismantled . | . . . . . . . . . . . . . . . Machines Sabotaged . | . . . . . . . . . . . . . . . Overloaded Fab Kills . | . . . . . . . . . . . . . . . Hacking | -11 -10 -9 -8 -7 -7 -7 -6 -5 -4 -4 -4 -3 -3 -3 --------- Run | Yrd Mat Mat Mat Fac Low Low Fac Fac Fac Upp Upp Res Gar Res Machines Accessed 13 | . 2 1 3 1 1 . 1 . 1 . . 2 . 1 Terminals 7 | . 1 . 3 1 1 . . . . . . . . 1 Fabricators 2 | . . . . . . . 1 . . . . 1 . . Repair Stations . | . . . . . . . . . . . . . . . Recycling Units 2 | . 1 1 . . . . . . . . . . . . Scanalyzers . | . . . . . . . . . . . . . . . Garrison Access 2 | . . . . . . . . . 1 . . 1 . . Total Hacks 31 | . 5 3 10 3 1 . 1 . 1 . . 3 . 4 Successful 18 | . 3 3 4 2 1 . 1 . . . . 1 . 3 Failed 13 | . 2 . 6 1 . . . . 1 . . 2 . 1 Catastrophic 4 | . . . 1 . . . . . 1 . . 2 . . Database Lockouts . | . . . . . . . . . . . . . . . Manual 1 | . . . . . . . . . . . . . . 1 Terminals 22 | . 4 . 10 3 1 . . . . . . . . 4 Fabricators 2 | . . . . . . . 1 . . . . 1 . . Repair Stations . | . . . . . . . . . . . . . . . Recycling Units 4 | . 1 3 . . . . . . . . . . . . Scanalyzers . | . . . . . . . . . . . . . . . Garrison Access 3 | . . . . . . . . . 1 . . 2 . . Terminal Hacks 12 | . 2 . 4 2 1 . . . . . . . . 3 Record 3 | . . . 1 1 1 . . . . . . . . . Level Access Points 1 | . . . . . . . . . . . . . . 1 Emergency Access Points 1 | . . . . . . . . . . . . . . 1 Alert Level 3 | . 1 . 1 1 . . . . . . . . . . Locate Traps 4 | . 1 . 2 . . . . . . . . . . 1 Fabricator Hacks 1 | . . . . . . . 1 . . . . . . . Build 1 | . . . . . . . 1 . . . . . . . Repair Station Hacks . | . . . . . . . . . . . . . . . Recycling Unit Hacks 4 | . 1 3 . . . . . . . . . . . . Process 1 | . . 1 . . . . . . . . . . . . Report Inventory 2 | . 1 1 . . . . . . . . . . . . Retrieve Matter 1 | . . 1 . . . . . . . . . . . . Scanalyzer . | . . . . . . . . . . . . . . . Garrison Access Hacks 1 | . . . . . . . . . . . . 1 . . Unlock Access 1 | . . . . . . . . . . . . 1 . . Unauthorized Hacks . | . . . . . . . . . . . . . . . Terminals . | . . . . . . . . . . . . . . . Fabricators . | . . . . . . . . . . . . . . . Repair Stations . | . . . . . . . . . . . . . . . Recycling Units . | . . . . . . . . . . . . . . . Scanalyzers . | . . . . . . . . . . . . . . . Garrison Access . | . . . . . . . . . . . . . . . Data Cores Recovered . | . . . . . . . . . . . . . . . Used . | . . . . . . . . . . . . . . . Hacking Detections 10 | . 2 1 3 1 . . . . 1 . . 2 . . Full Trace Events 4 | . . 1 2 . . . . . . . . 1 . . Feedback Events 1 | . . . . . . . . . . . . 1 . . Corruption 1 | . . . . . . . . . . . . 1 . . Feedback Blocked . | . . . . . . . . . . . . . . . Robot Schematics Acquired . | . . . . . . . . . . . . . . . Robots Built 4 | . . . . . . . 4 . . . . . . . Authchips . | . . . . . . . . . . . . . . . Time 40 | . . . . . . . 40 . . . . . . . Total Robot Build Rating 4 | . . . . . . . 4 . . . . . . . Part Schematics Acquired . | . . . . . . . . . . . . . . . Parts Built . | . . . . . . . . . . . . . . . Authchips . | . . . . . . . . . . . . . . . Time . | . . . . . . . . . . . . . . . Total Part Build Rating . | . . . . . . . . . . . . . . . Parts Repaired . | . . . . . . . . . . . . . . . Time . | . . . . . . . . . . . . . . . Parts Recycled . | . . . . . . . . . . . . . . . Recycled Matter . | . . . . . . . . . . . . . . . Retrieved Matter . | . . . . . . . . . . . . . . . Retrieved Components . | . . . . . . . . . . . . . . . Parts Scanalyzed . | . . . . . . . . . . . . . . . Part Schematics Acquired . | . . . . . . . . . . . . . . . Parts Damaged . | . . . . . . . . . . . . . . . Bothacking | -11 -10 -9 -8 -7 -7 -7 -6 -5 -4 -4 -4 -3 -3 -3 ------------ Run | Yrd Mat Mat Mat Fac Low Low Fac Fac Fac Upp Upp Res Gar Res Used RIF Installer . | . . . . . . . . . . . . . . . Robots Hacked . | . . . . . . . . . . . . . . . Non-combat . | . . . . . . . . . . . . . . . Combat . | . . . . . . . . . . . . . . . Robot Hacks Applied . | . . . . . . . . . . . . . . . Relay Couplers Released . | . . . . . . . . . . . . . . . Fabnet Peak Effective % . | . . . . . . . . . . . . . . . Robots Rewired . | . . . . . . . . . . . . . . . Allies Hacked . | . . . . . . . . . . . . . . . Hacks Repelled . | . . . . . . . . . . . . . . . Allies | -11 -10 -9 -8 -7 -7 -7 -6 -5 -4 -4 -4 -3 -3 -3 -------- Run | Yrd Mat Mat Mat Fac Low Low Fac Fac Fac Upp Upp Res Gar Res Total Allies 4 | . . . . . . . 4 . . . . . . . Largest Group 4 | . . . . . . . 4 . . . . . . . Highest-Rated Group 24 | . . . . . . . 24 . . . . . . . Highest-Rated Ally 6 | . . . . . . . 6 . . . . . . . Total Orders . | . . . . . . . . . . . . . . . Ally Attacks . | . . . . . . . . . . . . . . . Total Damage . | . . . . . . . . . . . . . . . Kills . | . . . . . . . . . . . . . . . Allies Corrupted . | . . . . . . . . . . . . . . . Allies Melted . | . . . . . . . . . . . . . . . Intel | -11 -10 -9 -8 -7 -7 -7 -6 -5 -4 -4 -4 -3 -3 -3 ------- Run | Yrd Mat Mat Mat Fac Low Low Fac Fac Fac Upp Upp Res Gar Res Robot Analysis Total . | . . . . . . . . . . . . . . . Derelict Logs Recovered 3 | . . . . . 1 . . . . 2 . . . . Drone Launches 5 | . . . . . . . . . . . 3 2 . . Drone Recoveries 4 | . . . . . . . . . . . 2 2 . . Exploration | -11 -10 -9 -8 -7 -7 -7 -6 -5 -4 -4 -4 -3 -3 -3 ------------- Run | Yrd Mat Mat Mat Fac Low Low Fac Fac Fac Upp Upp Res Gar Res Turns Passed 6782 | 95 159 762 1806 879 907 94 86 516 109 516 144 409 62 238 Spaces Moved 4771 | 63 160 313 927 462 562 187 64 572 129 565 86 318 90 273 Core 1025 | 4 . . . . 288 187 64 132 . . . 46 31 273 Treads . | . . . . . . . . . . . . . . . Legs 1192 | 20 . . 431 462 274 . . . . . 5 . . . Wheels 1008 | 39 160 313 496 . . . . . . . . . . . Hover 1546 | . . . . . . . . 440 129 565 81 272 59 . Flight . | . . . . . . . . . . . . . . . Fastest Speed 44 | 50 90 86 85 120 50 50 50 50 48 44 48 50 50 50 Average Speed 100 | 115 90 87 128 156 149 50 50 67 56 78 74 58 56 80 Slowest Speed 330 | 190 90 90 330 260 260 50 50 102 111 166 330 110 60 200 Overloaded Moves . | . . . . . . . . . . . . . . . Propulsion Burnouts . | . . . . . . . . . . . . . . . Robots Hopped . | . . . . . . . . . . . . . . . Cave-ins Triggered . | . . . . . . . . . . . . . . . Exploration Rate (%) 22 | 5 25 27 38 5 81 43 2 7 3 55 10 8 28 4 Regions Visited 14 Branch Regions 4 Pre-discovered Areas 1 | . . . . . . . . . . 1 . . . . Known Exits Taken 5 | . . . 1 1 1 . . . . 1 . 1 . . Unknown Exits Taken 8 | 1 1 1 . . . 1 1 1 1 . 1 . . . Scrap Searched 4 | . . . . . 1 . . . . 3 . . . . Spaces Dug . | . . . . . . . . . . . . . . . Terrain Destroyed 141 | . . 64 7 . 20 . . 14 4 11 16 5 . . Melee . | . . . . . . . . . . . . . . . Projectile 48 | . . 2 . . . . . 11 4 11 16 4 . . AOE 92 | . . 62 7 . 20 . . 3 . . . . . . Terrain Rammed . | . . . . . . . . . . . . . . . Walls Destroyed . | . . . . . . . . . . . . . . . Machines Disabled . | . . . . . . . . . . . . . . . Actions | -11 -10 -9 -8 -7 -7 -7 -6 -5 -4 -4 -4 -3 -3 -3 --------- Run | Yrd Mat Mat Mat Fac Low Low Fac Fac Fac Upp Upp Res Gar Res Total 6428 | 79 171 768 1446 589 595 186 117 676 152 619 124 514 100 292 Wait 1216 | 2 3 405 391 101 10 . 51 60 12 25 8 148 . . Move 4757 | 62 159 312 926 461 561 186 63 571 128 564 85 317 89 273 Hop . | . . . . . . . . . . . . . . . Pick Up 63 | 5 5 8 11 3 1 . . 12 2 3 . 10 . 3 Fast Attach 51 | 7 . 3 4 3 3 . 1 9 2 6 1 4 . 8 Attach 38 | . . 2 12 3 2 . . 5 2 2 4 6 . . Detach 14 | . . 1 1 . 1 . 1 2 1 1 2 2 . 2 Swap 37 | 1 1 10 16 3 . . . . . 2 2 2 . . Drop 47 | 1 1 9 6 1 . . 1 6 . 6 . 10 . 6 Fire 171 | 1 2 18 58 13 17 . . 10 5 10 22 15 . . Melee 11 | . . . 11 . . . . . . . . . . . Ram 8 | . . . 7 . . . . 1 . . . . . . Kick 4 | . . . 3 1 . . . . . . . . . . Crush . | . . . . . . . . . . . . . . . Escape Stasis 11 | . . . . . . . . . . . . . 11 . Rewire . | . . . . . . . . . . . . . . . Trap . | . . . . . . . . . . . . . . . Miscellaneous . | . . . . . . . . . . . . . . . Route ------- -11/Scrapyard -10/Materials -9/Materials -8/Materials -7/Factory -7/Lower Caves -7/Lower Caves -6/Factory -5/Factory -4/Factory -4/Upper Caves -4/Upper Caves -3/Research -3/Garrison -3/Research (discovered 3 exits: Res x3) History --------- Turn | Location | Event 8 | -11/Scrapyard | Discovered new exit (range 16) 96 | -11/Scrapyard | Entered Materials 200 | -10/Materials | Discovered new exit (range 3) 255 | -10/Materials | Entered another Materials area 255 | -9/Materials | Evolved 2 slots: Propulsion x1, Utility x1 301 | -9/Materials | Build established: Mutant 1011 | -9/Materials | Discovered new exit (range 8) 1014 | -9/Materials | Destroyed 8 combat bots 1017 | -9/Materials | Entered another Materials area 1017 | -8/Materials | Evolved 2 slots: Propulsion x1, Utility x1 1938 | -8/Materials | Lost 6 parts (1p3n2w) 2378 | -8/Materials | Build established: Scavenger-Mutant 2627 | -8/Materials | Discovered new exit (range 16) 2653 | -8/Materials | Identified exit to Factory 2823 | -8/Materials | Entered Factory 2823 | -7/Factory | Evolved 2 slots: Utility x2 3077 | -7/Factory | Discovered new exit (range 16) 3094 | -7/Factory | Identified exit to Lower Caves 3130 | -7/Factory | Build established: Scavenger-Skirmisher 3702 | -7/Factory | Entered Lower Caves 3795 | -7/Lower Caves | Lost 4 parts (1n3u) 3934 | -7/Lower Caves | Build established: Scavenger-Mutant 4447 | -7/Lower Caves | Spotted B-75 Beast 4466 | -7/Lower Caves | Released all parts (8) 4488 | -7/Lower Caves | Lost 3 parts (1n2w) 4552 | -7/Lower Caves | Identified exit to Lower Caves 4574 | -7/Lower Caves | Core integrity fell below 50% 4609 | -7/Lower Caves | Entered another Lower Caves area 4692 | -7/Lower Caves | Discovered new exit (range 8) 4703 | -7/Lower Caves | Entered Factory 4703 | -6/Factory | Evolved 2 slots: Propulsion x1, Weapon x1 4749 | -6/Factory | Build established: Mutant 4752 | -6/Factory | Fabricated K-01 Serf (x4) 4786 | -6/Factory | Discovered new exit (range 5) 4789 | -6/Factory | Entered another Factory area 4789 | -5/Factory | Evolved 2 slots: Power x1, Propulsion x1 5282 | -5/Factory | Discovered new exit (range 6) 5305 | -5/Factory | Entered another Factory area 5305 | -4/Factory | Evolved 2 slots: Propulsion x1, Weapon x1 5341 | -4/Factory | Discovered new exit (range 15) 5388 | -4/Factory | Garrison activated, responded to threat 5414 | -4/Factory | Entered Upper Caves 5596 | -4/Upper Caves | Build established: Scavenger-Gunner 5598 | -4/Upper Caves | Identified exit to Upper Caves 5683 | -4/Upper Caves | Learned location of Armory (-3) 5930 | -4/Upper Caves | Entered another Upper Caves area 5998 | -4/Upper Caves | Lost 4 parts (2n2w) 6068 | -4/Upper Caves | Discovered new exit (range 12) 6074 | -4/Upper Caves | Attracted the attention of an 0b10 checkpoint 6074 | -4/Upper Caves | Entered Research 6074 | -3/Research | Evolved 2 slots: Propulsion x1, Utility x1 6319 | -3/Research | Build established: Scavenger-Tank 6452 | -3/Research | Released all parts (8) 6476 | -3/Research | Core integrity fell below 50% 6481 | -3/Research | Lost 9 parts (2p3n4u) 6481 | -3/Research | Spotted B-86 Titan 6482 | -3/Research | Identified exit to Garrison 6483 | -3/Research | Entered Garrison 6507 | -3/Garrison | Triggered checkpoint 6507 | -3/Garrison | Triggered checkpoint 6523 | -3/Garrison | Core integrity fell below 20% 6540 | -3/Garrison | Discovered new exit (range 10) 6545 | -3/Garrison | Entered Research 6667 | -3/Research | Identified exit to Research 6752 | -3/Research | Build established: Mutant 6781 | -3/Research | System corruption reached 10% 6783 | -3/Research | Destroyed by P-80 Master with Gamma Rifle Last Messages --------------- >>Access(Main) Found 3 level access points to Research: (44,30) (125,147) (15,151) Map updated. 06667_ Connecting with Terminal... 06696_ QK8LBVKQMJ:RJJ0MVQERTYE,2 06705_ Triggered Alarm Trap. 06705_ An alarm sounds. 06705_ ALERT: Alarm triggered, dispatching investigation squad. 06710_ ALERT: Security rotation in progress. 06711_ System corrupted: Heat flow error (+264). 06728_ ALERT: All DSF locations entering lockdown mode. 06730_ Dropped Hpw. Tractor Beam. 06732_ Slug penetrates Wall. 06782_ Hpw. Tractor Beam destroyed. [Achievement: Back For More] Map ----- +----------------------------------------------------+ | ?????????????????????????????????????????????????? | | ?????????????????????????????????????????????????? | | ?????????????????????????????????????????????????? | | ?????????????????????????????????????????????????? | | ?????????????????????????????????????????????????? | | ?????????????????????????????????????????????????? | | ?????????????????????????????????????????????????? | | ?????????????????????????????????????????????????? | | ?????????????????????????????????????????????????? | | ?????????????????????????????????????????????????? | | ??????????????????????? ?????????????????????